bitfinex-derivatives/quotes_SOLF0:USTF0_20250919
["timestamp","ask_amount","ask_price","bid_price","bid_amount"]
[1758303873236,6.94,237.33,237.29,0.02734526]
[1758303873538,78.86,237.34,237.29,0.02734526]
[1758303873737,6.94,237.33,237.29,0.02734526]
[1758303874041,111.02,237.35,237.29,0.02734526]
[1758303874552,114.8101,237.35,237.29,0.02734526]
[1758303874845,116.29542087,237.35,237.29,0.02734526]
[1758303875046,6.94,237.35,237.29,0.02734526]
[1758303875241,6.94,237.33,237.29,0.02734526]
[1758303876144,63.32,237.35,237.29,0.02734526]
[1758303876346,111.02,237.35,237.29,0.02734526]
[1758303876747,6.94,237.35,237.29,0.02734526]
[1758303877047,89.36,237.35,237.29,0.02734526]
[1758303877947,6.94,237.35,237.29,0.02734526]
[1758303879943,3.7902,237.34,237.29,0.02734526]
[1758303880244,6.94,237.33,237.29,0.02734526]
[1758303880447,3.7902,237.34,237.29,0.02734526]
[1758303880644,6.94,237.33,237.29,0.02734526]
[1758303880844,3.7902,237.34,237.29,0.02734526]
[1758303881041,6.94,237.33,237.29,0.02734526]
[1758303881242,6.94,237.35,237.29,0.02734526]
[1758303881444,6.94,237.33,237.29,0.02734526]
[1758303881643,104.06,237.34,237.29,0.02734526]
[1758303882039,6.94,237.33,237.29,0.02734526]
[1758303882247,104.06,237.34,237.29,0.02734526]
[1758303882448,6.94,237.33,237.29,0.02734526]
[1758303882647,104.06,237.34,237.29,0.02734526]
[1758303882852,6.94,237.33,237.29,0.02734526]
[1758303883049,104.06,237.34,237.29,0.02734526]
[1758303883246,6.94,237.33,237.29,0.02734526]
[1758303883446,104.06,237.34,237.29,0.02734526]
[1758303883648,6.94,237.33,237.29,0.02734526]
[1758303884352,6.94,237.31,237.29,0.02734526]
[1758303884843,6.94,237.3,237.29,0.02734526]
[1758303887954,104.06,237.3,237.29,0.02734526]
[1758303888251,4.63587334,237.34,237.29,0.02734526]
[1758303888451,1.48532087,237.32,237.29,0.02734526]
[1758303888758,6.94,237.31,237.29,0.02734526]
[1758303889648,10.7307,237.31,237.29,0.02734526]
[1758303891156,6.94,237.3,237.29,0.02734526]
[1758303891552,111.0,237.3,237.29,0.02734526]
[1758303896963,6.94,237.3,237.29,0.02734526]
[1758303897159,110.98,237.3,237.29,0.02734526]
[1758303897761,118.51084847,237.3,237.29,0.02734526]
[1758303897956,14.47084847,237.3,237.29,0.02734526]
[1758303898158,2.89497513,237.3,237.29,0.02734526]
[1758303898455,2.89497513,237.3,237.29,7.25734526]
[1758303900664,9.79497513,237.3,237.29,0.02734526]
[1758303900864,11.280296,237.3,237.29,0.02734526]
[1758303901464,15.91616934,237.3,237.29,0.02734526]
[1758303901869,14.43084847,237.3,237.29,0.02734526]
[1758303902070,2.89497513,237.3,237.29,0.02734526]
[1758303902564,2.89497513,237.3,237.29,7.25734526]
[1758303903467,2.89497513,237.3,237.29,0.02734526]
[1758303904667,9.79497513,237.3,237.29,0.02734526]
[1758303905064,2.89497513,237.3,237.29,0.02734526]
[1758303905963,2.89497513,237.3,237.29,7.25734526]
[1758303908672,2.89497513,237.3,237.29,9.57901375]
[1758303909066,4.63587334,237.37,237.31,7.23]
[1758303909267,0.73358911,237.38,237.33,2.32166849]
[1758303909473,75.53587334,237.42,237.34,7.23]
[1758303910174,11.53587334,237.43,237.36,0.02838813]
[1758303910374,6.9,237.41,237.36,0.02838813]
[1758303910674,6.9,237.39,237.32,7.23]
[1758303910870,6.9,237.39,237.36,0.0267149]
[1758303911369,6.9,237.4,237.36,0.0267149]
[1758303912377,110.92,237.4,237.36,0.0267149]
[1758303913075,6.9,237.39,237.36,0.0267149]
[1758303913574,104.02,237.4,237.36,0.0267149]
[1758303913876,9.15806919,237.42,237.36,0.0267149]
[1758303914075,104.02,237.41,237.36,0.0267149]
[1758303914277,6.9,237.4,237.36,0.0267149]
[1758303914478,104.02,237.41,237.36,0.0267149]
[1758303914976,104.0,237.4,237.36,0.0267149]
[1758303915676,6.9,237.39,237.36,0.0267149]
[1758303916270,104.0,237.4,237.36,0.0267149]
[1758303916676,6.9,237.39,237.36,0.0267149]
[1758303916974,104.0,237.4,237.36,0.0267149]
[1758303917176,6.9,237.39,237.36,0.0267149]
[1758303918079,6.9,237.39,237.36,7.2567149]
[1758303918281,6.9,237.39,237.36,0.0267149]
[1758303918575,104.0,237.41,237.36,0.0267149]
[1758303918779,6.9,237.4,237.36,0.0267149]
[1758303919374,107.7891,237.41,237.36,0.0267149]
[1758303919577,6.9,237.4,237.36,0.0267149]
[1758303919778,104.0,237.41,237.36,0.0267149]
[1758303919986,6.9,237.39,237.36,0.0267149]
[1758303921082,9.7941872,237.38,237.36,0.0267149]
[1758303921276,2.8941872,237.37,237.36,0.0267149]
[1758303921583,9.7941872,237.37,237.36,0.0267149]
[1758303923281,9.7947146,237.37,237.36,0.0267149]
[1758303923981,6.9,237.36,237.27,11.0212]
[1758303924178,106.8747146,237.35,237.27,7.23]
[1758303924382,2.8947146,237.34,237.27,7.23]
[1758303924586,2.8947146,237.33,237.27,7.23]
[1758303924781,2.8947146,237.33,237.24,3.7915]
[1758303924782,9.7947146,237.32,237.24,3.7915]
[1758303924985,2.8947146,237.31,237.23,7.23]
[1758303925284,2.8947146,237.3,237.23,7.23]
[1758303925484,2.8947146,237.29,237.23,7.23]
[1758303925784,2.8947146,237.28,237.19,7.23]
[1758303925989,2.89460714,237.27,237.19,7.23]
[1758303926284,2.89462495,237.26,237.19,7.23]
[1758303926485,0.02919508,237.25,237.19,7.23]
[1758303926879,0.02919508,237.25,237.19,11.0223]
[1758303929187,0.02919508,237.25,237.19,6.6]
[1758303929785,0.02919508,237.25,237.24,6.6]
[1758303931388,0.02919508,237.25,237.24,7.02]
[1758303931791,0.02919508,237.25,237.24,6.6]
[1758303935394,11.68587334,237.39,237.26,6.6]
[1758303935595,2.90038329,237.38,237.29,6.6]
[1758303935789,2.90038329,237.37,237.29,6.6]
[1758303935985,2.90038329,237.36,237.29,6.6]
[1758303936187,2.90059129,237.35,237.29,6.6]
[1758303936382,7.05,237.39,237.29,6.6]
[1758303936583,2.90056438,237.38,237.29,6.6]
[1758303936786,2.90056438,237.37,237.34,3.7899]
[1758303936989,2.90056438,237.36,237.34,10.3899]
[1758303937189,2.90056438,237.35,237.34,10.3899]
[1758303937387,7.05,237.39,237.36,3.7897]
[1758303937587,2.90054986,237.38,237.37,6.6]
[1758303938901,2.90054986,237.38,237.35,0.02830291]
[1758303939195,7.05,237.36,237.35,0.02830291]
[1758303939394,9.95054986,237.36,237.35,0.02830291]
[1758303941598,2.90054986,237.36,237.35,0.02830291]
[1758303944497,9.95054986,237.36,237.35,0.02830291]
[1758303951304,9.95054986,237.36,237.29,3.7909]
[1758303951504,7.05,237.34,237.29,3.7909]
[1758303951706,2.90054986,237.35,237.29,3.7909]
[1758303951707,7.05,237.32,237.29,3.7909]
[1758303951906,2.90054986,237.31,237.29,3.7909]
[1758303952293,2.90054986,237.31,237.3,6.6]
[1758303955714,0.0270452,237.32,237.31,6.6]
[1758303955907,2.92959406,237.32,237.25,6.6]
[1758303956102,0.0270452,237.32,237.25,6.6]
[1758303956311,0.0270452,237.32,237.25,8.92166849]
[1758303956513,0.0270452,237.32,237.31,3.7906]
[1758303956820,0.0270452,237.32,237.31,10.3906]
[1758303957307,2.9296117,237.32,237.31,10.3906]
[1758303959818,2.9296117,237.32,237.31,3.7906]
[1758303961312,2.9296117,237.32,237.28,10.9709]
[1758303961518,6.71,237.3,237.28,3.7909]
[1758303961920,6.71,237.28,237.24,7.18]
[1758303962112,6.71,237.31,237.2,7.18]
[1758303962421,6.71,237.29,237.2,7.18]
[1758303962618,2.89496531,237.28,237.2,7.18]
[1758303962813,2.89496531,237.27,237.23,3.7918]
[1758303963020,9.60496531,237.26,237.23,3.7918]
[1758303963219,6.71,237.26,237.23,3.7918]
[1758303967221,0.03025058,237.28,237.23,3.7918]
[1758303967525,9.60303122,237.27,237.2,10.9722]
[1758303967727,0.03025058,237.28,237.14,429.7]
[1758303967728,2.89303122,237.26,237.14,429.7]
[1758303968027,2.89303122,237.25,237.14,111.14]
[1758303968325,1.4857751,237.26,237.14,111.14]
[1758303968326,2.89303122,237.24,237.14,111.14]
[1758303968624,0.03132622,237.22,237.14,114.9332]
[1758303968816,2.89303122,237.21,237.14,114.9332]
[1758303969018,2.89303122,237.2,237.14,114.9332]
[1758303969211,0.03132622,237.22,237.14,114.9332]
[1758303969415,2.88976114,237.21,237.14,114.9332]
[1758303969717,0.03132622,237.22,237.14,114.9332]
[1758303969917,2.8897601,237.21,237.14,114.9332]
[1758303970122,0.03132622,237.22,237.14,114.9332]
[1758303970320,2.88873076,237.21,237.14,114.9332]
[1758303970521,0.03132622,237.22,237.14,114.9332]
[1758303970722,2.88873197,237.21,237.14,114.9332]
[1758303970924,0.03132622,237.22,237.14,114.9332]
[1758303971326,0.03132622,237.22,237.15,1.4857751]
[1758303972728,0.03132622,237.22,237.15,5.2787751]
[1758303972923,2.88678627,237.21,237.16,1.4857751]
[1758303973124,0.03132622,237.22,237.16,1.4857751]
[1758303974412,0.03132622,237.22,237.14,7.18]
[1758303974413,6.71,237.21,237.14,7.18]
[1758303983724,10.5022,237.21,237.14,7.18]
[1758303984727,6.71,237.18,237.11,1.4857751]
[1758303984930,6.71,237.18,237.1,7.18]
[1758303985119,3.7919,237.23,237.13,7.18]
[1758303985319,9.58805063,237.22,237.16,7.18]
[1758303985522,6.71,237.22,237.16,7.18]
[1758303985723,0.02864735,237.2,237.19,7.18]
[1758303986122,6.71,237.26,237.19,7.18]
[1758303986329,0.03133339,237.22,237.19,7.18]
[1758303986832,0.03133339,237.22,237.21,1.4857751]
[1758303987030,0.03133339,237.22,237.21,8.6657751]
[1758303987231,6.71,237.3,237.21,8.6657751]
[1758303987529,6.71,237.34,237.25,1.4857751]
[1758303987728,6.71,237.32,237.25,1.4857751]
[1758303987930,6.71,237.3,237.22,1.4857751]
[1758303988131,6.71,237.28,237.22,1.4857751]
[1758303988337,6.71,237.26,237.22,8.6657751]
[1758303988829,6.71,237.26,237.23,0.02779678]
[1758303989224,6.95,237.29,237.23,0.02779678]
[1758303989428,58.9602,237.33,237.23,0.02779678]
[1758303989429,6.95,237.26,237.23,0.02779678]
[1758303989631,6.95,237.24,237.23,0.02779678]
[1758303989832,9.83165675,237.24,237.23,0.02779678]
[1758303992738,6.95,237.29,237.23,6.99779678]
[1758303992938,9.8405963,237.28,237.23,6.99779678]
[1758303993137,2.8905963,237.27,237.23,6.99779678]
[1758303993331,2.8905963,237.26,237.23,6.99779678]
[1758303993532,2.8905963,237.25,237.23,6.99779678]
[1758303993732,6.95,237.27,237.23,6.99779678]
[1758303993933,6.95,237.31,237.24,6.97]
[1758303994234,2.89123549,237.3,237.24,6.97]
[1758303994433,9.84123549,237.29,237.25,0.03195441]
[1758303994637,9.84123549,237.28,237.25,0.03195441]
[1758303994840,6.95,237.28,237.25,0.03195441]
[1758303996140,10.7405,237.32,237.25,7.00195441]
[1758303996342,2.89321197,237.31,237.25,7.00195441]
[1758303996541,9.84321197,237.3,237.25,7.00195441]
[1758303996760,2.89321197,237.29,237.26,6.97]
[1758303996941,2.89321197,237.28,237.26,6.97]
[1758303997142,6.95,237.34,237.26,6.97]
[1758303997341,2.89407617,237.33,237.29,6.97]
[1758303997533,2.89407617,237.32,237.28,1.4857751]
[1758303997733,2.89407617,237.31,237.29,6.97]
[1758303997933,6.95,237.38,237.29,6.97]
[1758303998136,2.894162,237.37,237.29,6.97]
[1758303998336,2.894162,237.36,237.29,6.97]
[1758303998540,6.95,237.38,237.29,6.97]
[1758303998541,2.894162,237.35,237.29,6.97]
[1758303998736,6.95,237.38,237.28,8.48586002]
[1758303998737,2.894162,237.34,237.28,8.48586002]
[1758303998932,2.894162,237.33,237.29,6.97]
[1758303999138,6.95,237.38,237.28,12.27666002]
[1758303999337,2.89645327,237.37,237.28,12.27666002]
[1758303999538,2.89645327,237.36,237.3,3.7906]
[1758303999741,2.89645327,237.35,237.3,3.7906]
[1758303999943,2.89645327,237.34,237.31,6.97]
[1758304000244,2.89645327,237.33,237.31,6.97]
[1758304000444,6.95,237.38,237.31,6.97]
[1758304000744,2.89673449,237.37,237.31,6.97]
[1758304001043,6.95,237.35,237.31,6.97]
[1758304001245,2.89673449,237.34,237.31,6.97]
[1758304002347,2.89673449,237.34,237.32,6.97]
[1758304002541,6.95,237.4,237.31,8.4557751]
[1758304002844,2.89791145,237.39,237.31,8.4557751]
[1758304003040,2.89791145,237.38,237.31,8.4557751]
[1758304003248,2.89791145,237.37,237.31,8.4557751]
[1758304003538,2.89791145,237.36,237.32,6.97]
[1758304003736,6.95,237.4,237.31,1.4857751]
[1758304003737,2.89791145,237.35,237.31,1.4857751]
[1758304003934,2.89791145,237.34,237.31,1.4857751]
[1758304004138,6.95,237.4,237.31,8.4557751]
[1758304004440,6.95,237.38,237.31,6.97]
[1758304004639,2.89783516,237.37,237.31,6.97]
[1758304004839,6.95,237.35,237.31,6.97]
[1758304005044,2.89783516,237.34,237.31,6.97]
[1758304005244,6.95,237.35,237.3,0.03227787]
[1758304005544,2.89744035,237.34,237.3,0.03227787]
[1758304005744,10.7394,237.39,237.3,7.00227787]
[1758304005943,2.89744035,237.38,237.3,7.00227787]
[1758304006144,2.89744035,237.37,237.3,7.00227787]
[1758304006443,2.89744035,237.36,237.3,7.00227787]
[1758304006644,2.89744035,237.35,237.31,6.97]
[1758304006843,2.89744035,237.34,237.31,6.97]
[1758304007046,10.7394,237.39,237.31,6.97]
[1758304007347,2.89751997,237.38,237.31,6.97]
[1758304007545,2.89751997,237.37,237.31,6.97]
[1758304007743,9.84751997,237.36,237.3,0.03227787]
[1758304007934,2.89751997,237.35,237.31,6.97]
[1758304008137,6.95,237.36,237.31,6.97]
[1758304008347,2.89635081,237.35,237.31,6.97]
[1758304008547,2.89635081,237.34,237.31,6.97]
[1758304008749,6.95,237.36,237.31,6.97]
[1758304008950,9.84634996,237.35,237.31,6.97]
[1758304009243,6.95,237.33,237.3,0.03227787]
[1758304009447,1.4857751,237.37,237.3,0.03227787]
[1758304009448,6.95,237.36,237.3,0.03227787]
[1758304010844,3.7899,237.35,237.3,0.03227787]
[1758304011643,6.95,237.34,237.3,0.03227787]
[1758304011843,3.7899,237.35,237.3,0.03227787]
[1758304012240,3.7903,237.33,237.3,0.03227787]
[1758304012645,6.95,237.32,237.3,0.03227787]
[1758304013144,3.7903,237.33,237.3,0.03227787]
[1758304013343,6.95,237.32,237.3,0.03227787]
[1758304013848,1.4857751,237.34,237.3,0.03227787]
[1758304014350,6.95,237.33,237.3,0.03227787]
[1758304014644,1.4857751,237.34,237.3,0.03227787]
[1758304014838,6.95,237.33,237.3,0.03227787]
[1758304015039,1.4857751,237.34,237.3,0.03227787]
[1758304015247,6.95,237.33,237.3,0.03227787]
[1758304015549,1.4857751,237.32,237.3,0.03227787]
[1758304015750,6.95,237.31,237.3,0.03227787]
[1758304015946,6.95,237.31,237.23,6.97]
[1758304017358,3.791,237.29,237.2,115.30058302]
[1758304017548,6.95,237.28,237.2,115.30058302]
[1758304017949,0.03120961,237.26,237.2,115.30058302]
[1758304023455,7.04,237.25,237.2,104.53838302]
[1758304023651,2.89489807,237.24,237.17,7.0]
[1758304023857,2.89461935,237.23,237.17,7.0]
[1758304024056,10.8316,237.25,237.17,7.0]
[1758304024261,0.03069466,237.22,237.17,7.0]
[1758304024461,7.04,237.21,237.17,7.0]
[1758304024758,10.86279466,237.22,237.14,10.7931]
[1758304024958,2.89469447,237.21,237.14,10.7931]
[1758304025155,10.86279466,237.22,237.14,10.7931]
[1758304025354,2.89498891,237.21,237.14,10.7931]
[1758304025562,10.86279466,237.22,237.14,10.7931]
[1758304025763,2.89479646,237.21,237.14,10.7931]
[1758304025968,7.07069466,237.22,237.14,10.7931]
[1758304026165,2.89479531,237.21,237.14,10.7931]
[1758304026363,0.03069466,237.22,237.16,7.0]
[1758304026559,2.89485087,237.21,237.13,7.0]
[1758304026770,0.03069466,237.22,237.13,7.0]
[1758304026967,2.89485087,237.21,237.14,3.7932]
[1758304027267,7.07069466,237.22,237.15,7.0]
[1758304027459,2.89490717,237.21,237.15,7.0]
[1758304027663,7.07069466,237.22,237.15,7.0]
[1758304027860,2.89490602,237.21,237.15,7.0]
[1758304028068,7.07069466,237.22,237.15,7.0]
[1758304028271,2.89516518,237.21,237.15,7.0]
[1758304028468,7.07069466,237.22,237.15,7.0]
[1758304028675,2.89520936,237.21,237.15,10.7929]
[1758304028969,0.03069466,237.22,237.15,7.0]
[1758304029562,0.03069466,237.22,237.12,2.32315162]
[1758304029563,0.03069466,237.22,237.17,2.32315162]
[1758304029765,0.03069466,237.22,237.18,7.0]
[1758304030970,0.03069466,237.22,237.21,7.0]
[1758304033472,7.04,237.34,237.26,7.0]
[1758304033664,2.89838885,237.33,237.26,7.0]
[1758304033864,2.89838885,237.32,237.26,7.0]
[1758304034070,2.89838885,237.31,237.27,7.0]
[1758304034271,2.89838885,237.3,237.27,7.0]
[1758304034575,7.04,237.34,237.27,3.791]
[1758304034765,2.89844246,237.33,237.27,3.791]
[1758304034962,2.89844246,237.32,237.26,7.03189239]
[1758304035273,2.89844246,237.31,237.27,7.0]
[1758304035471,2.89844246,237.3,237.27,7.0]
[1758304035773,7.04,237.34,237.27,7.0]
[1758304035973,2.89865546,237.33,237.27,7.0]
[1758304036174,9.93865546,237.32,237.27,7.0]
[1758304036363,2.89865546,237.31,237.27,7.0]
[1758304036569,2.89865546,237.3,237.26,0.03189239]
[1758304036764,2.89865546,237.29,237.27,7.0]
[1758304036976,10.83,237.35,237.27,7.0]
[1758304037177,2.89890439,237.34,237.27,7.0]
[1758304037376,2.89890439,237.33,237.27,7.0]
[1758304037581,2.89890439,237.32,237.26,7.03189239]
[1758304037772,2.89890439,237.31,237.26,0.03189239]
[1758304037969,10.83,237.35,237.26,0.03189239]
[1758304037970,2.89890439,237.3,237.27,7.0]
[1758304038275,2.89890439,237.29,237.27,7.0]
[1758304038477,10.83,237.35,237.27,7.0]
[1758304038676,2.89932225,237.34,237.27,7.0]
[1758304038887,2.89932225,237.33,237.27,7.0]
[1758304039179,2.89932225,237.32,237.26,10.82309239]
[1758304039377,2.89932225,237.31,237.27,7.0]
[1758304039579,2.89932225,237.3,237.27,7.0]
[1758304039783,2.89932225,237.29,237.27,7.0]
[1758304040080,7.04,237.35,237.27,7.0]
[1758304040379,2.89966482,237.34,237.27,7.0]
[1758304040574,2.89966482,237.33,237.27,7.0]
[1758304040776,2.89966482,237.32,237.26,3.82309239]
[1758304040975,2.89966482,237.31,237.27,7.0]
[1758304041175,2.89966482,237.3,237.26,3.82309239]
[1758304041377,2.89966482,237.29,237.26,3.82309239]
[1758304041577,7.04,237.35,237.27,7.0]
[1758304041874,2.89953372,237.34,237.27,7.0]
[1758304042076,2.89953372,237.33,237.27,7.0]
[1758304042280,2.89953372,237.32,237.26,3.82309239]
[1758304042471,2.89953372,237.31,237.26,3.82309239]
[1758304042672,7.04,237.35,237.28,3.791]
[1758304042673,2.89953372,237.3,237.28,3.791]
[1758304042873,7.04,237.35,237.28,10.791]
[1758304043074,2.89956505,237.34,237.28,10.791]
[1758304043374,2.89956505,237.33,237.29,3.7907]
[1758304043575,2.89956505,237.32,237.29,3.7907]
[1758304043771,2.89956505,237.31,237.3,7.0]
[1758304044077,3.7894,237.38,237.3,7.0]
[1758304044272,2.88730645,237.37,237.3,10.7905]
[1758304044476,2.88730645,237.36,237.3,10.7905]
[1758304044676,9.92730645,237.35,237.31,7.0]
[1758304044879,2.88730645,237.34,237.31,7.0]
[1758304047680,2.88730645,237.34,237.28,0.02754919]
[1758304047879,2.88730645,237.34,237.32,7.0]
[1758304049687,2.88730645,237.34,237.32,3.7902]
[1758304049885,7.28,237.4,237.33,7.29]
[1758304050084,2.8890696,237.39,237.33,7.29]
[1758304050290,2.8890696,237.38,237.3,7.29]
[1758304050483,2.8890696,237.37,237.34,0.02890226]
[1758304050679,243.88342087,237.44,237.34,0.02890226]
[1758304050680,7.28,237.35,237.34,0.02890226]
[1758304050983,10.1690696,237.35,237.34,0.02890226]
[1758304051384,2.8890696,237.35,237.34,7.31890226]
[1758304051977,7.28,237.4,237.34,7.31890226]
[1758304052284,7.28,237.38,237.34,11.10890226]
[1758304052483,2.88765911,237.37,237.34,11.10890226]
[1758304053581,10.16765911,237.37,237.34,11.10890226]
[1758304053781,2.88765911,237.36,237.34,11.10890226]
[1758304053983,7.28,237.37,237.34,11.10890226]
[1758304054184,2.88742929,237.36,237.34,11.10890226]
[1758304054383,7.28,237.37,237.34,11.10890226]
[1758304054585,2.88708665,237.36,237.34,11.10890226]
[1758304054882,7.28,237.37,237.34,11.10890226]
[1758304055078,2.88708665,237.36,237.34,11.10890226]
[1758304055278,7.28,237.37,237.34,11.10890226]
[1758304055487,2.88664881,237.36,237.34,11.10890226]
[1758304055688,7.28,237.37,237.34,11.10890226]
[1758304055883,2.88694653,237.36,237.34,11.10890226]
[1758304056084,7.28,237.37,237.34,11.10890226]
[1758304056284,2.88698212,237.36,237.34,11.10890226]
[1758304056486,7.28,237.37,237.34,11.10890226]
[1758304056688,2.88671339,237.36,237.34,11.10890226]
[1758304056986,7.28,237.37,237.34,11.10890226]
[1758304057193,2.88720674,237.36,237.34,11.10890226]
[1758304057388,7.28,237.4,237.34,11.10890226]
[1758304057691,2.88678567,237.39,237.36,7.29]
[1758304057890,2.88678567,237.38,237.35,3.7897]
[1758304058089,2.88678567,237.37,237.36,7.29]
[1758304059887,140.02342087,237.44,237.36,7.29]
[1758304060085,2.88587848,237.43,237.36,7.29]
[1758304060390,140.02342087,237.44,237.36,7.29]
[1758304060391,2.88587848,237.42,237.36,7.29]
[1758304060593,2.88587848,237.41,237.38,11.0794]
[1758304060792,2.88587848,237.4,237.38,7.29]
[1758304060987,2.88587848,237.39,237.38,7.29]
[1758304061893,2.88587848,237.39,237.38,11.0794]
[1758304062289,140.02342087,237.44,237.38,11.0794]
[1758304062488,10.16344203,237.43,237.38,11.0794]
[1758304062687,10.16344203,237.42,237.38,11.0794]
[1758304062894,2.88344203,237.41,237.38,11.0794]
[1758304063194,2.88344203,237.4,237.38,11.0794]
[1758304063490,7.28,237.42,237.38,11.0794]
[1758304063694,2.8839072,237.41,237.38,11.0794]
[1758304063893,2.8839072,237.4,237.38,11.0794]
[1758304064086,7.28,237.42,237.38,11.0794]
[1758304064287,2.88378506,237.41,237.38,11.0794]
[1758304064591,2.88378506,237.4,237.38,11.0794]
[1758304064794,7.28,237.43,237.36,3.7897]
[1758304065092,7.28,237.41,237.34,7.31890226]
[1758304065292,2.88346709,237.4,237.34,7.31890226]
[1758304065496,10.16346709,237.39,237.34,7.31890226]
[1758304065693,2.88346709,237.38,237.34,7.31890226]
[1758304065895,7.28,237.39,237.34,7.31890226]
[1758304066194,10.16326916,237.38,237.34,7.31890226]
[1758304066390,7.28,237.38,237.34,7.31890226]
[1758304066696,103.8,237.41,237.34,0.02890226]
[1758304066996,2.88313645,237.4,237.34,0.02890226]
[1758304067196,7.28,237.38,237.34,0.02890226]
[1758304067397,2.88322952,237.37,237.34,0.02890226]
[1758304067598,7.28,237.35,237.34,0.02890226]
[1758304069301,10.16485098,237.35,237.34,0.02890226]
[1758304070003,2.88485098,237.35,237.34,0.02890226]
[1758304073804,10.16485098,237.35,237.34,0.02890226]
[1758304081613,7.28,237.35,237.34,0.02890226]
[1758304088219,7.28,237.35,237.25,8.78487022]
[1758304088425,7.28,237.35,237.25,7.3]
[1758304088426,11.91587334,237.35,237.25,7.3]
[1758304089528,7.11,237.31,237.25,7.3]
[1758304091618,7.11,237.31,237.23,1.48487022]
[1758304092030,92.35487022,237.31,237.19,8.78487022]
[1758304092625,0.02855375,237.27,237.19,8.78487022]
[1758304092824,7.11,237.26,237.19,8.78487022]
[1758304095124,7.11,237.26,237.19,12.57717022]
[1758304095429,7.11,237.26,237.2,7.3]
[1758304102625,0.02855375,237.27,237.23,7.3]
[1758304102824,0.02855375,237.27,237.26,7.3]
[1758304103027,35.04996803,237.39,237.26,7.3]
[1758304103229,7.11,237.38,237.3,8.78487022]
[1758304104134,7.11,237.38,237.32,0.02720287]
[1758304105432,1.48487022,237.35,237.32,0.02720287]
[1758304105639,7.11,237.34,237.22,7.3]
[1758304105838,7.11,237.31,237.22,7.3]
[1758304106332,103.72,237.33,237.16,94.87964553]
[1758304106333,7.11,237.28,237.19,1.48487022]
[1758304106736,0.0285187,237.26,237.19,1.48487022]
[1758304106931,7.11,237.25,237.19,1.48487022]
[1758304107734,7.11,237.25,237.18,7.3]
[1758304107935,7.11,237.25,237.16,94.87964553]
[1758304109439,7.11,237.25,237.17,8.58487022]
[1758304111538,2.88786768,237.24,237.17,8.58487022]
[1758304111833,7.11,237.25,237.17,8.58487022]
[1758304111834,2.88786768,237.23,237.17,8.58487022]
[1758304112037,2.88786768,237.22,237.18,7.1]
[1758304112338,7.11,237.25,237.18,7.1]
[1758304112542,2.88941441,237.24,237.18,7.1]
[1758304112737,2.88941441,237.23,237.17,8.58487022]
[1758304113042,2.88941441,237.22,237.18,7.1]
[1758304113235,7.11,237.25,237.18,7.1]
[1758304113435,2.88917977,237.24,237.18,7.1]
[1758304113636,2.88917977,237.23,237.18,7.1]
[1758304113840,2.88917977,237.22,237.18,7.1]
[1758304114036,7.11,237.25,237.18,7.1]
[1758304114230,2.88925626,237.24,237.18,7.1]
[1758304114434,2.88925626,237.23,237.18,7.1]
[1758304114636,2.88925626,237.22,237.18,7.1]
[1758304114837,7.11,237.25,237.18,7.1]
[1758304115137,2.88923718,237.24,237.18,7.1]
[1758304115438,2.88923718,237.23,237.17,1.48487022]
[1758304115640,2.88923718,237.22,237.17,1.48487022]
[1758304115840,7.11,237.25,237.2,1.48487022]
[1758304116036,2.88917805,237.24,237.21,7.1]
[1758304116236,2.88917805,237.23,237.21,7.1]
[1758304116542,0.0285187,237.26,237.2,8.58487022]
[1758304116844,2.88941153,237.25,237.21,7.1]
[1758304117042,0.0285187,237.26,237.24,1.48487022]
[1758304117231,2.88962371,237.25,237.24,1.48487022]
[1758304118241,9.90962371,237.25,237.24,1.48487022]
[1758304118638,2.88962371,237.25,237.24,1.48487022]